Workbook

Sheet Antiderivatives
B1: Antiderivatives of a Function
B3: This graphing utility lets you investigate
B4: a variety of different antiderivatives
C5: of any desired function
D6: y = f(x)
B7: on any interval from x = a to x = b.
A9: Enter the function in terms of x: f(x) = | F9: cos(x)
A12: Now enter the interval for x:
C13: xMin = | D13: 0
C14: xMax = | D14: 6.28
A19: Now enter the largest "starting" value for the antiderivative = | I19: 4 | M19: Antiderivatives of the function y = | P19: =F9 -> cos(x)
C20: and the smallest "starting" value = | I20: -2
M22: Now any other "starting" value = | P22: =I20 + O24*(I19-I20)/200 -> 1.24
A24: Click each item below for suggestions and investigations | O24: 108
A25: Item 1
A26: Item 2
A27: Item 3
A28: Item 4
A32: To access/download all the DIGMath Apps for Calculus
A33: Click this link: | C33: DIGMath for Calculus
A35: Created by: Sheldon P. Gordon
A36: Farmingdale State College
A37: Development of this module was supported by the
A38: NSF's Division of Undergraduate Education
A39: under grants DUE-0310123 and DUE-0442160.

Sheet Antideriv vs. Fn
B1: Antiderivative vs the Function
B3: This graphing utility lets you investigate
B4: the antiderivative of any function
C5: versus the function itself
D6: y = f(x)
B7: on any interval from x = a to x = b.
A11: To change the function, click on the "Antiderivatives" tab below
A19: Click each item below for suggestions and investigations
C20: Item 1
C21: Item 2 | I21: An antiderivative of the function y = | M21: =Antiderivatives!F9 -> cos(x)
C22: Item 3
C23: Item 4 | J23: vs. the actual function itself
I26: Select the point on the curve at x0 = | M26: =xMin+L28*(xMax-xMin)/200 -> 1.9154
A27: To access/download all the DIGMath Apps for Calculus
A28: Click this link: | C28: DIGMath Modules for Calculus | L28: 61 | M28: =C21+L28*(C22-C21)/100 -> 
A30: Created by: Sheldon P. Gordon
A31: Farmingdale State College
A32: Development of this module was supported by the
A33: NSF's Division of Undergraduate Education
A34: under grants DUE-0310123 and DUE-0442160.

Sheet Sheet2
A1: x | B1: slope | C1: y1 | D1: y2 | E1: y3 | F1: xl= | G1: =IF(Antiderivatives!$P$24<Antiderivatives!D13+80*Sheet2!G5,Antiderivatives!D13,Antiderivatives!P24-80*Sheet2!G5) -> 0 | H1: =LOOKUP(Antiderivatives!P24,Sheet2!A3:A1002,Sheet2!B3:B1002)+LOOKUP(Antiderivatives!P24,Sheet2!A3:A1002,Sheet2!C3:C1002)*(G1-Antiderivatives!P24) -> 1 | I1: "=yl
F2: xr= | G2: =IF(Antiderivatives!$P$24>Antiderivatives!D14-80*Sheet2!G5,Antiderivatives!D14,Antiderivatives!P24+80*Sheet2!G5) -> 2.499502488 | H2: =LOOKUP(Antiderivatives!P24,Sheet2!A3:A1003,Sheet2!B3:B1003)+LOOKUP(Antiderivatives!P24,Sheet2!A3:A1003,Sheet2!C3:C1003)*(G2-Antiderivatives!P24) -> -3.999004975 | I2: "=yR
A3: =xMin -> 0.00 | B3: =COS(x) -> 1 | C3: =Antiderivatives!I20 -> -2 | D3: =Antiderivatives!P22 -> 1.24 | E3: =Antiderivatives!I19 -> 4
A4: =A3+dx -> 0.03 | B4: 0.9995119528 | C4: =C3+B3*dx -> -1.968756219 | D4: =D3+B3*dx -> 1.271243781 | E4: =E3+B3*dx -> 4.031243781
A5: 0.06 | B5: 0.9980482875 | C5: -1.937527686 | D5: 1.302472314 | E5: 4.062472314 | F5: delta x = | G5: =(Antiderivatives!D14-Antiderivatives!D13)/201 -> 0.03124378109
A6: 0.09 | B6: 0.9956104328 | C6: -1.906344884 | D6: 1.333655116 | E6: 4.093655116
A7: 0.12 | B7: 0.9922007683 | C7: -1.87523825 | D7: 1.36476175 | E7: 4.12476175
A8: 0.16 | B8: 0.9878226221 | C8: -1.844238146 | D8: 1.395761854 | E8: 4.155761854
A9: 0.19 | B9: 0.9824802678 | C9: -1.813374832 | D9: 1.426625168 | E9: 4.186625168
A10: 0.22 | B10: 0.9761789199 | C10: -1.782678434 | D10: 1.457321566 | E10: 4.217321566
A11: 0.25 | B11: 0.9689247292 | C11: -1.752178913 | D11: 1.487821087 | E11: 4.247821087 | G11: vertical lines
A12: 0.28 | B12: 0.9607247764 | C12: -1.721906041 | D12: 1.518093959 | E12: 4.278093959 | G12: vertical | H12: =value -> 1.9154 | I12: =MIN(LOOKUP(value,Sheet2!A3:A204,Sheet2!B3:B204),LOOKUP(value,Sheet2!A3:A204,D3:D204)) -> -0.3288393575 | J12: = ymin
A13: 0.31 | B13: 0.9515870655 | C13: -1.691889367 | D13: 1.548110633 | E13: 4.308110633 | H13: =value -> 1.9154 | I13: =MAX(LOOKUP(value,Sheet2!A3:A204,Sheet2!B3:B204),LOOKUP(value,Sheet2!A3:A204,D3:D204)) -> 2.205068031 | J13: = ymax
A14: 0.34 | B14: 0.9415205158 | C14: -1.662158189 | D14: 1.577841811 | E14: 4.337841811
A15: 0.37 | B15: 0.9305349531 | C15: -1.632741528 | D15: 1.607258472 | E15: 4.367258472
A16: 0.41 | B16: 0.9186411004 | C16: -1.603668097 | D16: 1.636331903 | E16: 4.396331903
A17: 0.44 | B17: 0.9058505672 | C17: -1.574966276 | D17: 1.665033724 | E17: 4.425033724
A18: 0.47 | B18: 0.8921758383 | C18: -1.546664079 | D18: 1.693335921 | E18: 4.453335921
A19: 0.50 | B19: 0.8776302616 | C19: -1.518789133 | D19: 1.721210867 | E19: 4.481210867
A20: 0.53 | B20: 0.8622280348 | C20: -1.491368645 | D20: 1.748631355 | E20: 4.508631355
A21: 0.56 | B21: 0.845984192 | C21: -1.464429381 | D21: 1.775570619 | E21: 4.535570619
A22: 0.59 | B22: 0.8289145887 | C22: -1.437997636 | D22: 1.802002364 | E22: 4.562002364
A23: 0.62 | B23: 0.8110358865 | C23: -1.41209921 | D23: 1.82790079 | E23: 4.58790079
A24: 0.66 | B24: 0.7923655367 | C24: -1.386759382 | D24: 1.853240618 | E24: 4.613240618
A25: 0.69 | B25: 0.7729217633 | C25: -1.362002887 | D25: 1.877997113 | E25: 4.637997113
A26: 0.72 | B26: 0.7527235452 | C26: -1.337853888 | D26: 1.902146112 | E26: 4.662146112
A27: 0.75 | B27: 0.7317905979 | C27: -1.314335959 | D27: 1.925664041 | E27: 4.685664041
A28: 0.78 | B28: 0.7101433538 | C28: -1.291472054 | D28: 1.948527946 | E28: 4.708527946
A29: 0.81 | B29: 0.6878029427 | C29: -1.26928449 | D29: 1.97071551 | E29: 4.73071551
A30: 0.84 | B30: 0.664791171 | C30: -1.247794925 | D30: 1.992205075 | E30: 4.752205075
A31: 0.87 | B31: 0.6411305003 | C31: -1.227024336 | D31: 2.012975664 | E31: 4.772975664
A32: 0.91 | B32: 0.6168440257 | C32: -1.206992995 | D32: 2.033007005 | E32: 4.793007005
A33: 0.94 | B33: 0.5919554531 | C33: -1.187720455 | D33: 2.052279545 | E33: 4.812279545
A34: 0.97 | B34: 0.566489076 | C34: -1.169225528 | D34: 2.070774472 | E34: 4.830774472
A35: 1.00 | B35: 0.5404697521 | C35: -1.151526268 | D35: 2.088473732 | E35: 4.848473732
A36: 1.03 | B36: 0.5139228786 | C36: -1.134639949 | D36: 2.105360051 | E36: 4.865360051
A37: 1.06 | B37: 0.4868743679 | C37: -1.118583055 | D37: 2.121416945 | E37: 4.881416945
A38: 1.09 | B38: 0.4593506219 | C38: -1.103371259 | D38: 2.136628741 | E38: 4.896628741
A39: 1.12 | B39: 0.4313785062 | C39: -1.089019409 | D39: 2.150980591 | E39: 4.910980591
A40: 1.16 | B40: 0.4029853244 | C40: -1.075541513 | D40: 2.164458487 | E40: 4.924458487
A41: 1.19 | B41: 0.3741987908 | C41: -1.062950728 | D41: 2.177049272 | E41: 4.937049272
A42: 1.22 | B42: 0.3450470039 | C42: -1.051259343 | D42: 2.188740657 | E42: 4.948740657
A43: 1.25 | B43: 0.3155584185 | C43: -1.04047877 | D43: 2.19952123 | E43: 4.95952123
A44: 1.28 | B44: 0.2857618182 | C44: -1.030619531 | D44: 2.209380469 | E44: 4.969380469
A45: 1.31 | B45: 0.2556862875 | C45: -1.021691252 | D45: 2.218308748 | E45: 4.978308748
A46: 1.34 | B46: 0.2253611828 | C46: -1.013702645 | D46: 2.226297355 | E46: 4.986297355
A47: 1.37 | B47: 0.1948161043 | C47: -1.00666151 | D47: 2.23333849 | E47: 4.99333849
A48: 1.41 | B48: 0.1640808668 | C48: -1.000574718 | D48: 2.239425282 | E48: 4.999425282
A49: 1.44 | B49: 0.133185471 | C49: -0.9954482115 | D49: 2.244551788 | E49: 5.004551788
A50: 1.47 | B50: 0.1021600735 | C50: -0.9912869938 | D50: 2.248713006 | E50: 5.008713006
A51: 1.50 | B51: 0.07103495821 | C51: -0.9880951269 | D51: 2.251904873 | E51: 5.011904873
A52: 1.53 | B52: 0.03984050605 | C52: -0.9858757262 | D52: 2.254124274 | E52: 5.014124274
A53: 1.56 | B53: 0.00860716579 | C53: -0.9846309581 | D53: 2.255369042 | E53: 5.015369042
A54: 1.59 | B54: -0.02263457587 | C54: -0.9843620377 | D54: 2.255637962 | E54: 5.015637962
A55: 1.62 | B55: -0.05385422405 | C55: -0.9850692275 | D55: 2.254930773 | E55: 5.014930773
A56: 1.66 | B56: -0.08502130543 | C56: -0.986751837 | D56: 2.253248163 | E56: 5.013248163
A57: 1.69 | B57: -0.116105398 | C57: -0.9894082241 | D57: 2.250591776 | E57: 5.010591776
A58: 1.72 | B58: -0.1470761607 | C58: -0.9930357957 | D58: 2.246964204 | E58: 5.006964204
A59: 1.75 | B59: -0.1779033632 | C59: -0.9976310111 | D59: 2.242368989 | E59: 5.002368989
A60: 1.78 | B60: -0.2085569152 | C60: -1.003189385 | D60: 2.236810615 | E60: 4.996810615
A61: 1.81 | B61: -0.2390068959 | C61: -1.009705491 | D61: 2.230294509 | E61: 4.990294509
A62: 1.84 | B62: -0.2692235834 | C62: -1.017172971 | D62: 2.222827029 | E62: 4.982827029
A63: 1.87 | B63: -0.2991774832 | C63: -1.025584533 | D63: 2.214415467 | E63: 4.974415467
A64: 1.91 | B64: -0.3288393575 | C64: -1.034931969 | D64: 2.205068031 | E64: 4.965068031
A65: 1.94 | B65: -0.3581802536 | C65: -1.045206154 | D65: 2.194793846 | E65: 4.954793846
A66: 1.97 | B66: -0.3871715319 | C66: -1.056397059 | D66: 2.183602941 | E66: 4.943602941
A67: 2.00 | B67: =COS(x) -> -0.4157848942 | C67: -1.068493762 | D67: 2.171506238 | E67: 4.931506238
A68: =A67+dx -> 2.03 | B68: -0.4439924112 | C68: =C67+B67*dx -> -1.081484454 | D68: =D67+B67*dx -> 2.158515546 | E68: =E67+B67*dx -> 4.918515546
A69: 2.06 | B69: -0.4717665496 | C69: -1.095356456 | D69: 2.144643544 | E69: 4.904643544
A70: 2.09 | B70: -0.4990801994 | C70: -1.110096227 | D70: 2.129903773 | E70: 4.889903773
A71: 2.12 | B71: -0.5259066997 | C71: -1.125689379 | D71: 2.114310621 | E71: 4.874310621
A72: 2.16 | B72: -0.5522198654 | C72: -1.142120693 | D72: 2.097879307 | E72: 4.857879307
A73: 2.19 | B73: -0.5779940124 | C73: -1.15937413 | D73: 2.08062587 | E73: 4.84062587
A74: 2.22 | B74: -0.6032039826 | C74: -1.177432848 | D74: 2.062567152 | E74: 4.822567152
A75: 2.25 | B75: -0.6278251688 | C75: -1.196279221 | D75: 2.043720779 | E75: 4.803720779
A76: 2.28 | B76: -0.6518335383 | C76: -1.215894853 | D76: 2.024105147 | E76: 4.784105147
A77: 2.31 | B77: -0.6752056567 | C77: -1.236260598 | D77: 2.003739402 | E77: 4.763739402
A78: 2.34 | B78: -0.6979187106 | C78: -1.257356575 | D78: 1.982643425 | E78: 4.742643425
A79: 2.37 | B79: -0.7199505299 | C79: -1.279162195 | D79: 1.960837805 | E79: 4.720837805
A80: 2.41 | B80: -0.7412796095 | C80: -1.301656172 | D80: 1.938343828 | E80: 4.698343828
A81: 2.44 | B81: -0.7618851303 | C81: -1.324816549 | D81: 1.915183451 | E81: 4.675183451
A82: 2.47 | B82: -0.7817469791 | C82: -1.348620722 | D82: 1.891379278 | E82: 4.651379278
A83: 2.50 | B83: -0.8008457691 | C83: -1.373045453 | D83: 1.866954547 | E83: 4.626954547
A84: 2.53 | B84: -0.8191628579 | C84: -1.398066903 | D84: 1.841933097 | E84: 4.601933097
A85: 2.56 | B85: -0.8366803665 | C85: -1.423660648 | D85: 1.816339352 | E85: 4.576339352
A86: 2.59 | B86: -0.8533811959 | C86: -1.449801706 | D86: 1.790198294 | E86: 4.550198294
A87: 2.62 | B87: -0.8692490448 | C87: -1.476464562 | D87: 1.763535438 | E87: 4.523535438
A88: 2.66 | B88: -0.8842684244 | C88: -1.503623188 | D88: 1.736376812 | E88: 4.496376812
A89: 2.69 | B89: -0.8984246746 | C89: -1.531251078 | D89: 1.708748922 | E89: 4.468748922
A90: 2.72 | B90: -0.9117039774 | C90: -1.559321261 | D90: 1.680678739 | E90: 4.440678739
A91: 2.75 | B91: -0.924093371 | C91: -1.587806341 | D91: 1.652193659 | E91: 4.412193659
A92: 2.78 | B92: -0.9355807622 | C92: -1.616678512 | D92: 1.623321488 | E92: 4.383321488
A93: 2.81 | B93: -0.9461549383 | C93: -1.645909592 | D93: 1.594090408 | E93: 4.354090408
A94: 2.84 | B94: -0.9558055777 | C94: -1.67547105 | D94: 1.56452895 | E94: 4.32452895
A95: 2.87 | B95: -0.9645232606 | C95: -1.70533403 | D95: 1.53466597 | E95: 4.29466597
A96: 2.91 | B96: -0.9722994778 | C96: -1.735469384 | D96: 1.504530616 | E96: 4.264530616
A97: 2.94 | B97: -0.9791266387 | C97: -1.765847696 | D97: 1.474152304 | E97: 4.234152304
A98: 2.97 | B98: -0.9849980797 | C98: -1.796439314 | D98: 1.443560686 | E98: 4.203560686
A99: 3.00 | B99: -0.9899080694 | C99: -1.827214379 | D99: 1.412785621 | E99: 4.172785621
A100: 3.03 | B100: -0.9938518154 | C100: -1.85814285 | D100: 1.38185715 | E100: 4.14185715
A101: 3.06 | B101: -0.9968254682 | C101: -1.889194538 | D101: 1.350805462 | E101: 4.110805462
A102: 3.09 | B102: -0.9988261251 | C102: -1.920339135 | D102: 1.319660865 | E102: 4.079660865
A103: 3.12 | B103: -0.9998518334 | C103: -1.95154624 | D103: 1.28845376 | E103: 4.04845376
A104: 3.16 | B104: -0.9999015919 | C104: -1.982785392 | D104: 1.257214608 | E104: 4.017214608
A105: 3.19 | B105: -0.9989753519 | C105: -2.014026098 | D105: 1.225973902 | E105: 3.985973902
A106: 3.22 | B106: -0.9970740177 | C106: -2.045237865 | D106: 1.194762135 | E106: 3.954762135
A107: 3.25 | B107: -0.9941994451 | C107: -2.076390228 | D107: 1.163609772 | E107: 3.923609772
A108: 3.28 | B108: -0.9903544399 | C108: -2.107452778 | D108: 1.132547222 | E108: 3.892547222
A109: 3.31 | B109: -0.9855427552 | C109: -2.138395195 | D109: 1.101604805 | E109: 3.861604805
A110: 3.34 | B110: -0.9797690878 | C110: -2.169187277 | D110: 1.070812723 | E110: 3.830812723
A111: 3.37 | B111: -0.9730390731 | C111: -2.199798968 | D111: 1.040201032 | E111: 3.800201032
A112: 3.41 | B112: -0.9653592804 | C112: -2.230200388 | D112: 1.009799612 | E112: 3.769799612
A113: 3.44 | B113: -0.9567372059 | C113: -2.260361862 | D113: 0.9796381382 | E113: 3.739638138
A114: 3.47 | B114: -0.9471812655 | C114: -2.29025395 | D114: 0.9497460504 | E114: 3.70974605
A115: 3.50 | B115: -0.9367007867 | C115: -2.319847474 | D115: 0.9201525263 | E115: 3.680152526
A116: 3.53 | B116: -0.9253059995 | C116: -2.349113548 | D116: 0.890886452 | E116: 3.650886452
A117: 3.56 | B117: -0.9130080263 | C117: -2.378023606 | D117: 0.8619763939 | E117: 3.621976394
A118: 3.59 | B118: -0.8998188709 | C118: -2.406549429 | D118: 0.833450571 | E118: 3.593450571
A119: 3.62 | B119: -0.8857514074 | C119: -2.434663173 | D119: 0.8053368271 | E119: 3.565336827
A120: 3.66 | B120: -0.8708193668 | C120: -2.462337396 | D120: 0.7776626041 | E120: 3.537662604
A121: 3.69 | B121: -0.8550373243 | C121: -2.489545086 | D121: 0.7504549144 | E121: 3.510454914
A122: 3.72 | B122: -0.8384206846 | C122: -2.516259685 | D122: 0.7237403154 | E122: 3.483740315
A123: 3.75 | B123: -0.8209856671 | C123: -2.542455117 | D123: 0.6975448831 | E123: 3.457544883
A124: 3.78 | B124: -0.8027492901 | C124: -2.568105813 | D124: 0.6718941866 | E124: 3.431894187
A125: 3.81 | B125: -0.7837293539 | C125: -2.593186736 | D125: 0.6468132635 | E125: 3.406813264
A126: 3.84 | B126: -0.7639444239 | C126: -2.617673405 | D126: 0.6223265951 | E126: 3.382326595
A127: 3.87 | B127: -0.7434138119 | C127: -2.641541917 | D127: 0.5984580828 | E127: 3.358458083
A128: 3.91 | B128: -0.7221575579 | C128: -2.664768976 | D128: 0.5752310244 | E128: 3.335231024
A129: 3.94 | B129: -0.7001964098 | C129: -2.687331908 | D129: 0.5526680917 | E129: 3.312668092
A130: 3.97 | B130: -0.677551804 | C130: -2.709208692 | D130: 0.5307913084 | E130: 3.290791308
A131: 4.00 | B131: =COS(x) -> -0.6542458436 | C131: -2.730377972 | D131: 0.5096220281 | E131: 3.269622028
A132: =A131+dx -> 4.03 | B132: -0.6303012774 | C132: =C131+B131*dx -> -2.750819086 | D132: =D131+B131*dx -> 0.4891809142 | E132: =E131+B131*dx -> 3.249180914
A133: 4.06 | B133: -0.6057414777 | C133: -2.770512081 | D133: 0.4694879191 | E133: 3.229487919
A134: 4.09 | B134: -0.580590417 | C134: -2.789437735 | D134: 0.450562265 | E134: 3.210562265
A135: 4.12 | B135: -0.5548726453 | C135: -2.807577575 | D135: 0.4324224251 | E135: 3.192422425
A136: 4.16 | B136: -0.5286132655 | C136: -2.824913894 | D136: 0.4150861056 | E136: 3.175086106
A137: 4.19 | B137: -0.5018379092 | C137: -2.841429772 | D137: 0.3985702284 | E137: 3.158570228
A138: 4.22 | B138: -0.4745727117 | C138: -2.857109085 | D138: 0.3828909147 | E138: 3.142890915
A139: 4.25 | B139: -0.4468442864 | C139: -2.871936531 | D139: 0.3680634687 | E139: 3.128063469
A140: 4.28 | B140: -0.4186796989 | C140: -2.885897636 | D140: 0.3541023637 | E140: 3.114102364
A141: 4.31 | B141: -0.3901064405 | C141: -2.898978773 | D141: 0.3410212268 | E141: 3.101021227
A142: 4.34 | B142: -0.3611524013 | C142: -2.911167173 | D142: 0.3288328266 | E142: 3.088832827
A143: 4.37 | B143: -0.3318458433 | C143: -2.92245094 | D143: 0.31754906 | E143: 3.07754906
A144: 4.41 | B144: -0.3022153724 | C144: -2.932819059 | D144: 0.3071809411 | E144: 3.067180941
A145: 4.44 | B145: -0.2722899107 | C145: -2.94226141 | D145: 0.2977385902 | E145: 3.05773859
A146: 4.47 | B146: -0.2420986684 | C146: -2.950768776 | D146: 0.2892312238 | E146: 3.049231224
A147: 4.50 | B147: -0.2116711149 | C147: -2.958332854 | D147: 0.281667146 | E147: 3.041667146
A148: 4.53 | B148: -0.1810369504 | C148: -2.96494626 | D148: 0.27505374 | E148: 3.03505374
A149: 4.56 | B149: -0.1502260767 | C149: -2.970602539 | D149: 0.2693974612 | E149: 3.029397461
A150: 4.59 | B150: -0.1192685682 | C150: -2.975296169 | D150: 0.2647038305 | E150: 3.024703831
A151: 4.62 | B151: -0.08819464235 | C151: -2.97902257 | D151: 0.2609774295 | E151: 3.02097743
A152: 4.66 | B152: -0.05703463016 | C152: -2.981778105 | D152: 0.2582218954 | E152: 3.018221895
A153: 4.69 | B153: -0.02581894678 | C153: -2.983560082 | D153: 0.2564399179 | E153: 3.016439918
A154: 4.72 | B154: 0.005421938323 | C154: -2.984366764 | D154: 0.2556332364 | E154: 3.015633236
A155: 4.75 | B155: 0.03665753111 | C155: -2.984197362 | D155: 0.2558026382 | E155: 3.015802638
A156: 4.78 | B156: 0.06785734267 | C156: -2.983052042 | D156: 0.2569479581 | E156: 3.016947958
A157: 4.81 | B157: 0.09899091907 | C157: -2.980931922 | D157: 0.2590680781 | E157: 3.019068078
A158: 4.84 | B158: 0.130027871 | C158: -2.977839071 | D158: 0.2621609287 | E158: 3.022160929
A159: 4.87 | B159: 0.1609379034 | C159: -2.973776509 | D159: 0.266223491 | E159: 3.026223491
A160: 4.91 | B160: 0.1916908452 | C160: -2.9687482 | D160: 0.2712517996 | E160: 3.0312518
A161: 4.94 | B161: 0.2222566787 | C161: -2.962759054 | D161: 0.2772409464 | E161: 3.037240946
A162: 4.97 | B162: 0.2526055686 | C162: -2.955814915 | D162: 0.2841850855 | E162: 3.044185085
A163: 5.00 | B163: 0.2827078917 | C163: -2.947922561 | D163: 0.2920774386 | E163: 3.052077439
A164: 5.03 | B164: 0.3125342651 | C164: -2.939089698 | D164: 0.300910302 | E164: 3.060910302
A165: 5.06 | B165: 0.3420555756 | C165: -2.929324946 | D165: 0.3106750542 | E165: 3.070675054
A166: 5.09 | B166: 0.3712430076 | C166: -2.918637836 | D166: 0.3213621637 | E166: 3.081362164
A167: 5.12 | B167: 0.4000680713 | C167: -2.907038801 | D167: 0.332961199 | E167: 3.092961199
A168: 5.16 | B168: 0.4285026307 | C168: -2.894539162 | D168: 0.3454608382 | E168: 3.105460838
A169: 5.19 | B169: 0.4565189312 | C169: -2.881151119 | D169: 0.3588488806 | E169: 3.118848881
A170: 5.22 | B170: 0.484089626 | C170: -2.866887742 | D170: 0.3731122582 | E170: 3.133112258
A171: 5.25 | B171: 0.5111878037 | C171: -2.851762952 | D171: 0.3882370485 | E171: 3.148237048
A172: 5.28 | B172: 0.5377870137 | C172: -2.835791512 | D172: 0.4042084883 | E172: 3.164208488
A173: 5.31 | B173: 0.5638612929 | C173: -2.818989012 | D173: 0.4210109881 | E173: 3.181010988
A174: 5.34 | B174: 0.5893851902 | C174: -2.801371853 | D174: 0.4386281469 | E174: 3.198628147
A175: 5.37 | B175: 0.6143337918 | C175: -2.782957231 | D175: 0.4570427687 | E175: 3.217042769
A176: 5.41 | B176: 0.6386827457 | C176: -2.763763121 | D176: 0.4762368792 | E176: 3.236236879
A177: 5.44 | B177: 0.6624082848 | C177: -2.743808257 | D177: 0.4961917431 | E177: 3.256191743
A178: 5.47 | B178: 0.6854872509 | C178: -2.723112117 | D178: 0.5168878826 | E178: 3.276887883
A179: 5.50 | B179: 0.7078971168 | C179: -2.701694904 | D179: 0.5383050962 | E179: 3.298305096
A180: 5.53 | B180: 0.7296160081 | C180: -2.679577521 | D180: 0.5604224787 | E180: 3.320422479
A181: 5.56 | B181: 0.7506227254 | C181: -2.656781558 | D181: 0.5832184416 | E181: 3.343218442
A182: 5.59 | B182: 0.7708967639 | C182: -2.633329266 | D182: 0.6066707337 | E182: 3.366670734
A183: 5.62 | B183: 0.7904183344 | C183: -2.609243537 | D183: 0.6307564634 | E183: 3.390756463
A184: 5.66 | B184: 0.809168382 | C184: -2.584547879 | D184: 0.6554521208 | E184: 3.415452121
A185: 5.69 | B185: 0.8271286048 | C185: -2.559266399 | D185: 0.6807336006 | E185: 3.440733601
A186: 5.72 | B186: 0.8442814719 | C186: -2.533423774 | D186: 0.7065762257 | E186: 3.466576226
A187: 5.75 | B187: 0.8606102406 | C187: -2.507045229 | D187: 0.7329547712 | E187: 3.492954771
A188: 5.78 | B188: 0.8760989724 | C188: -2.480156511 | D188: 0.7598434892 | E188: 3.519843489
A189: 5.81 | B189: 0.8907325489 | C189: -2.452783866 | D189: 0.7872161337 | E189: 3.547216134
A190: 5.84 | B190: 0.9044966862 | C190: -2.424954014 | D190: 0.8150459864 | E190: 3.575045986
A191: 5.87 | B191: 0.9173779494 | C191: -2.396694117 | D191: 0.8433058829 | E191: 3.603305883
A192: 5.91 | B192: 0.9293637651 | C192: -2.368031761 | D192: 0.8719682387 | E192: 3.631968239
A193: 5.94 | B193: 0.9404424339 | C193: -2.338994923 | D193: 0.9010050768 | E193: 3.661005077
A194: 5.97 | B194: 0.9506031421 | C194: -2.309611946 | D194: 0.9303880543 | E194: 3.690388054
A195: 6.00 | B195: =COS(x) -> 0.9598359718 | C195: -2.279911509 | D195: 0.9600884908 | E195: 3.720088491
A196: =A195+dx -> 6.03 | B196: 0.968131911 | C196: =C195+B195*dx -> -2.249922604 | D196: =D195+B195*dx -> 0.9900773958 | E196: =E195+B195*dx -> 3.750077396
A197: 6.06 | B197: 0.975482862 | C197: -2.219674503 | D197: 1.020325497 | E197: 3.780325497
A198: 6.09 | B198: 0.9818816496 | C198: -2.18919673 | D198: 1.05080327 | E198: 3.81080327
A199: 6.12 | B199: 0.9873220279 | C199: -2.158519034 | D199: 1.081480966 | E199: 3.841480966
A200: 6.16 | B200: 0.9917986867 | C200: -2.127671361 | D200: 1.112328639 | E200: 3.872328639
... 4 more rows

Sheet Defining Function
A1: Defining a Function in Excel
A3: Computers have very specific rules you must follow when defining a function. If you don't, the program will either not work at all or will work incorrectly.
A5: 1. The Variable used should be the one named in the instruction, usually x, though sometimes y, t, Q (for an angle theta),
A6: or even x and y (for a function of two variables).
A8: 2. Order of Operations: There five arithmetic operations, addition (+), subtraction (-), multiplication (*), division (/), and exponentiation or power (^). When computers see any of these operation symbols, they perform the indicated steps in a very particular order. First, the power is done. Second, products and quotients of adjacent terms is done. Third, and last, sums and differences of adjacent terms are done. So, in 10*x^3 + 5*x – 7, say with x = 2, the first pass only calculates 2^3 and ignores the multiplications and the sums and differences to calculate 2^3 = 8. The second pass looks at 10*8 + 5*2 – 7 and only does the multiplications, so it produces 80 + 10 - 7. The third pass looks at the +’s and –‘s to produce 80 + 10 – 7 = 83.
A10: 3. Parentheses If you need an operation involving more than two adjacent terms, as in Ö4^3 + 6^2, the computer would take the square root of 4 to produce 2^3 + 6^2; it would then cube the 2 and square the 6 to produce 8 + 36; and finally it would add the 8 and the 36 to get 44. If you actually wanted the square root of the entire expression, you would need to use parentheses, as in Ö(4^3 + 6^2) to tell the computer to do all the operations inside the parentheses before taking the square root. Therefore, it would calculate (4^3 + 6^2) = 64 + 36 = 100 and then take the square root of Ö100 = 10.
A12: 4. Built-In Functions Computer programs have built-in functions for most common algebraic functions. In Excel, the square root function is denoted by SQRT(…), so SQRT(100) = 10. Alternatively, you could enter it as 100^.5 or 100^(1/2); notice that parentheses are needed to have the ½ done first. The common trig functions are SIN (…), COS (…), and TAN (…), where the arguments are automatically interpreted as being in radians, not degrees. The logarithm to the base 10 is represented by LOG (…) and the logarithm with the base e, known as the natural logarithm, is LN (…). The corresponding exponential function with base e is EXP (x). If x is the variable, then each of these would be SQRT (x), SIN (x), COS (x), TAN (x), LOG (x) (for log with base 10 ), LN (x) (for log with base e ), and EXP (x).

Sheet Sheet3
